[Event "Titled Tuesday Blitz April 05 Late 2022"]
[White "Martin Barcelo, Carles"]
[Black "Diaz Perez, Michel Alejandro"]
[WhiteFideId "24561444"]
[BlackFideId "3517179"]
[WhiteElo "1875"]
[BlackElo "2313"]
[Result "1-0"]
[Round "03"]
[TimeControl "180+1"]
[Date "2022.04.06"]
[WhiteClock "0:00:17"]
[BlackClock "0:00:16"]

1. e4 {[%clk 0:02:02]}  c5 {[%clk 0:02:50]} 2. Nf3 {[%clk 0:02:01]}  d6 {[%clk 0:02:51]} 3. Bb5+ {[%clk 0:02:02]}  Bd7 {[%clk 0:02:50]} 4. Bxd7+ {[%clk 0:02:02]}  Qxd7 {[%clk 0:02:51]} 5. c4 {[%clk 0:02:02]}  Nc6 {[%clk 0:02:48]} 6. Nc3 {[%clk 0:02:03]}  g6 {[%clk 0:02:49]} 7. d4 {[%clk 0:02:03]}  cxd4 {[%clk 0:02:49]} 8. Nxd4 {[%clk 0:02:04]}  Bg7 {[%clk 0:02:49]} 9. Be3 {[%clk 0:02:05]}  Rc8 {[%clk 0:02:48]} 10. f3 {[%clk 0:01:54]}  Nf6 {[%clk 0:02:43]} 11. b3 {[%clk 0:01:47]}  O-O {[%clk 0:02:43]} 12. Qd2 {[%clk 0:01:44]}  a6 {[%clk 0:02:42]} 13. Nxc6 {[%clk 0:01:43]}  Qxc6 {[%clk 0:02:41]} 14. Rc1 {[%clk 0:01:41]}  b5 {[%clk 0:02:37]} 15. cxb5 {[%clk 0:01:36]}  axb5 {[%clk 0:02:38]} 16. O-O {[%clk 0:01:36]}  Qb7 {[%clk 0:02:31]} 17. Qd3 {[%clk 0:01:13]}  b4 {[%clk 0:02:30]} 18. Qb5 {[%clk 0:01:13]}  Rb8 {[%clk 0:02:14]} 19. Qxb7 {[%clk 0:01:09]}  Rxb7 {[%clk 0:02:15]} 20. Na4 {[%clk 0:01:07]}  Nd7 {[%clk 0:02:03]} 21. Rc2 {[%clk 0:01:00]}  f5 {[%clk 0:01:47]} 22. exf5 {[%clk 0:00:58]}  gxf5 {[%clk 0:01:48]} 23. Bg5 {[%clk 0:00:36]}  Kf7 {[%clk 0:01:46]} 24. Re1 {[%clk 0:00:35]}  e5 {[%clk 0:01:45]} 25. Rd1 {[%clk 0:00:34]}  h6 {[%clk 0:01:36]} 26. Bh4 {[%clk 0:00:32]}  Nc5 {[%clk 0:01:11]} 27. Nxc5 {[%clk 0:00:30]}  dxc5 {[%clk 0:01:12]} 28. Rxc5 {[%clk 0:00:30]}  Ra8 {[%clk 0:01:12]} 29. Rd2 {[%clk 0:00:23]}  Ra6 {[%clk 0:01:06]} 30. Bg3 {[%clk 0:00:23]}  Ke6 {[%clk 0:01:05]} 31. Rc8 {[%clk 0:00:21]}  Rd6 {[%clk 0:00:47]} 32. Rxd6+ {[%clk 0:00:19]}  Kxd6 {[%clk 0:00:47]} 33. Rc4 {[%clk 0:00:20]}  Kd5 {[%clk 0:00:46]} 34. Bf2 {[%clk 0:00:18]}  Bf8 {[%clk 0:00:35]} 35. Kf1 {[%clk 0:00:18]}  Rb8 {[%clk 0:00:34]} 36. Ke2 {[%clk 0:00:18]}  Ra8 {[%clk 0:00:35]} 37. Rc2 {[%clk 0:00:19]}  Bd6 {[%clk 0:00:35]} 38. h3 {[%clk 0:00:17]}  h5 {[%clk 0:00:34]} 39. Kd3 {[%clk 0:00:15]}  e4+ {[%clk 0:00:34]} 40. fxe4+ {[%clk 0:00:16]}  fxe4+ {[%clk 0:00:35]} 41. Ke2 {[%clk 0:00:17]}  Bf4 {[%clk 0:00:34]} 42. g4 {[%clk 0:00:17]}  hxg4 {[%clk 0:00:34]} 43. hxg4 {[%clk 0:00:17]}  Bd6 {[%clk 0:00:34]} 44. Rd2+ {[%clk 0:00:16]}  Ke6 {[%clk 0:00:34]} 45. Rd4 {[%clk 0:00:16]}  Ke5 {[%clk 0:00:32]} 46. Rd2 {[%clk 0:00:16]}  Be7 {[%clk 0:00:18]} 47. Bg3+ {[%clk 0:00:15]}  Ke6 {[%clk 0:00:19]} 48. Ke3 {[%clk 0:00:14]}  Rg8 {[%clk 0:00:13]} 49. Kxe4 {[%clk 0:00:12]}  Rxg4+ {[%clk 0:00:14]} 50. Kf3 {[%clk 0:00:13]}  Rg8 {[%clk 0:00:13]} 51. Bf2 {[%clk 0:00:12]}  Ra8 {[%clk 0:00:13]} 52. Ke4 {[%clk 0:00:12]}  Bf6 {[%clk 0:00:13]} 53. Bc5 {[%clk 0:00:12]}  Bc3 {[%clk 0:00:14]} 54. Rc2 {[%clk 0:00:12]}  Rh8 {[%clk 0:00:13]} 55. a4 {[%clk 0:00:12]}  Rh4+ {[%clk 0:00:13]} 56. Kd3 {[%clk 0:00:12]}  Kd5 {[%clk 0:00:14]} 57. Be3 {[%clk 0:00:11]}  Rh3 {[%clk 0:00:15]} 58. Rg2 {[%clk 0:00:10]}  Be5 {[%clk 0:00:14]} 59. Rg5 {[%clk 0:00:11]}  Ke6 {[%clk 0:00:13]} 60. Ke4 {[%clk 0:00:11]}  Rh4+ {[%clk 0:00:12]} 61. Kd3 {[%clk 0:00:10]}  Bf6 {[%clk 0:00:11]} 62. Rb5 {[%clk 0:00:10]}  Rh3 {[%clk 0:00:11]} 63. Ke4 {[%clk 0:00:10]}  Rh4+ {[%clk 0:00:11]} 64. Kf3 {[%clk 0:00:10]}  Rh3+ {[%clk 0:00:11]} 65. Ke2 {[%clk 0:00:11]}  Bc3 {[%clk 0:00:10]} 66. Bc5 {[%clk 0:00:09]}  Rh4 {[%clk 0:00:07]} 67. Kd3 {[%clk 0:00:08]}  Rh3+ {[%clk 0:00:06]} 68. Kc2 {[%clk 0:00:08]}  Rh2+ {[%clk 0:00:06]} 69. Kd3 {[%clk 0:00:08]}  Rh3+ {[%clk 0:00:06]} 70. Ke4 {[%clk 0:00:08]}  Rh4+ {[%clk 0:00:06]} 71. Kf3 {[%clk 0:00:09]}  Kd7 {[%clk 0:00:07]} 72. a5 {[%clk 0:00:07]}  Kc6 {[%clk 0:00:06]} 73. Be7 {[%clk 0:00:06]}  Rh3+ {[%clk 0:00:07]} 74. Kg4 {[%clk 0:00:06]}  Re3 {[%clk 0:00:04]} 75. Bg5 {[%clk 0:00:04]}  Re4+ {[%clk 0:00:04]} 76. Kf5 {[%clk 0:00:05]}  Rd4 {[%clk 0:00:04]} 77. Re5 {[%clk 0:00:05]}  Rd1 {[%clk 0:00:04]} 78. Re6+ {[%clk 0:00:05]}  Kb5 {[%clk 0:00:04]} 79. a6 {[%clk 0:00:05]}  Rf1+ {[%clk 0:00:04]} 80. Kg6 {[%clk 0:00:06]}  Ra1 {[%clk 0:00:05]} 81. Kf7 {[%clk 0:00:06]}  Rxa6 {[%clk 0:00:05]} 82. Rxa6 {[%clk 0:00:07]}  Kxa6 {[%clk 0:00:05]} 83. Ke6 {[%clk 0:00:08]}  Kb5 {[%clk 0:00:06]} 84. Kd5 {[%clk 0:00:09]}  Bd2 {[%clk 0:00:06]} 85. Bxd2 {[%clk 0:00:09]}  Ka5 {[%clk 0:00:06]} 86. Kc4 {[%clk 0:00:09]}  Kb6 {[%clk 0:00:07]} 87. Bxb4 {[%clk 0:00:10]}  Kc6 {[%clk 0:00:08]} 88. Bc3 {[%clk 0:00:10]}  Kb6 {[%clk 0:00:09]} 89. b4 {[%clk 0:00:11]}  Ka6 {[%clk 0:00:09]} 90. b5+ {[%clk 0:00:12]}  Kb6 {[%clk 0:00:10]} 91. Kb4 {[%clk 0:00:13]}  Kb7 {[%clk 0:00:11]} 92. Kc5 {[%clk 0:00:14]}  Kb8 {[%clk 0:00:12]} 93. b6 {[%clk 0:00:14]}  Kb7 {[%clk 0:00:13]} 94. Kb5 {[%clk 0:00:15]}  Kb8 {[%clk 0:00:14]} 95. Kc6 {[%clk 0:00:15]}  Kc8 {[%clk 0:00:14]} 96. b7+ {[%clk 0:00:16]}  Kb8 {[%clk 0:00:15]} 97. Be5+ {[%clk 0:00:16]}  Ka7 {[%clk 0:00:15]} 98. b8=Q+ {[%clk 0:00:17]}  Ka6 {[%clk 0:00:16]} 99. Qb6# {[%clk 0:00:17]} 1-0


[Site "https://www.chess.com"]

[Event "Titled Tuesday Blitz April 05 Late 2022"]
[White "Matlakov, Maxim"]
[Black "Kosakowski, Jakub"]
[WhiteFideId "4168003"]
[BlackFideId "1185080"]
[WhiteElo "2669"]
[BlackElo "2454"]
[Result "0-1"]
[Round "03"]
[TimeControl "180+1"]
[Date "2022.04.05"]
[WhiteClock "0:00:10"]
[BlackClock "0:00:18"]

1. e4 {[%clk 0:02:51]}  c6 {[%clk 0:02:45]} 2. d4 {[%clk 0:02:50]}  d5 {[%clk 0:02:46]} 3. e5 {[%clk 0:02:49]}  c5 {[%clk 0:02:45]} 4. Nf3 {[%clk 0:02:48]}  cxd4 {[%clk 0:02:40]} 5. Nxd4 {[%clk 0:02:48]}  e6 {[%clk 0:02:33]} 6. Bd3 {[%clk 0:02:43]}  Ne7 {[%clk 0:02:32]} 7. O-O {[%clk 0:02:43]}  Nbc6 {[%clk 0:02:32]} 8. Nxc6 {[%clk 0:02:42]}  Nxc6 {[%clk 0:02:31]} 9. Re1 {[%clk 0:02:42]}  Be7 {[%clk 0:02:30]} 10. c3 {[%clk 0:02:42]}  O-O {[%clk 0:02:08]} 11. Nd2 {[%clk 0:02:40]}  f6 {[%clk 0:02:04]} 12. Qh5 {[%clk 0:02:33]}  f5 {[%clk 0:01:53]} 13. Qe2 {[%clk 0:02:27]}  Bd7 {[%clk 0:01:52]} 14. Nf3 {[%clk 0:02:22]}  Rc8 {[%clk 0:01:51]} 15. Bd2 {[%clk 0:02:14]}  Be8 {[%clk 0:01:49]} 16. Nd4 {[%clk 0:02:03]}  Nxd4 {[%clk 0:01:45]} 17. cxd4 {[%clk 0:02:04]}  Qb6 {[%clk 0:01:42]} 18. Bc3 {[%clk 0:01:50]}  Bb4 {[%clk 0:01:41]} 19. Rac1 {[%clk 0:01:43]}  Bd7 {[%clk 0:01:40]} 20. h4 {[%clk 0:01:35]}  Rc6 {[%clk 0:01:30]} 21. Bb5 {[%clk 0:01:29]}  Rxc3 {[%clk 0:01:29]} 22. Bxd7 {[%clk 0:01:26]}  Rxc1 {[%clk 0:01:28]} 23. Rxc1 {[%clk 0:01:25]}  Rd8 {[%clk 0:01:27]} 24. Bc8 {[%clk 0:00:53]}  Re8 {[%clk 0:01:02]} 25. Qh5 {[%clk 0:00:47]}  g6 {[%clk 0:00:58]} 26. Qd1 {[%clk 0:00:46]}  Be7 {[%clk 0:00:54]} 27. Qa4 {[%clk 0:00:44]}  Kf7 {[%clk 0:00:51]} 28. Rc2 {[%clk 0:00:38]}  Bxh4 {[%clk 0:00:46]} 29. g3 {[%clk 0:00:33]}  Be7 {[%clk 0:00:44]} 30. Kg2 {[%clk 0:00:33]}  h5 {[%clk 0:00:39]} 31. a3 {[%clk 0:00:32]}  h4 {[%clk 0:00:39]} 32. Qd7 {[%clk 0:00:27]}  Rd8 {[%clk 0:00:38]} 33. Qxb7 {[%clk 0:00:24]}  Qxd4 {[%clk 0:00:36]} 34. Qc6 {[%clk 0:00:20]}  Qe4+ {[%clk 0:00:34]} 35. f3 {[%clk 0:00:20]}  Qxe5 {[%clk 0:00:31]} 36. Qc7 {[%clk 0:00:20]}  Qxc7 {[%clk 0:00:28]} 37. Rxc7 {[%clk 0:00:21]}  hxg3 {[%clk 0:00:28]} 38. Kxg3 {[%clk 0:00:22]}  d4 {[%clk 0:00:28]} 39. Kf2 {[%clk 0:00:21]}  d3 {[%clk 0:00:28]} 40. Ke1 {[%clk 0:00:22]}  Kf6 {[%clk 0:00:25]} 41. Ba6 {[%clk 0:00:22]}  Bd6 {[%clk 0:00:24]} 42. Rc6 {[%clk 0:00:19]}  Bf4 {[%clk 0:00:22]} 43. Bc4 {[%clk 0:00:18]}  d2+ {[%clk 0:00:22]} 44. Kd1 {[%clk 0:00:18]}  Rh8 {[%clk 0:00:20]} 45. Rxe6+ {[%clk 0:00:18]}  Kg5 {[%clk 0:00:20]} 46. Be2 {[%clk 0:00:17]}  Rh1+ {[%clk 0:00:20]} 47. Kc2 {[%clk 0:00:17]}  Rc1+ {[%clk 0:00:21]} 48. Kb3 {[%clk 0:00:17]}  d1=Q+ {[%clk 0:00:22]} 49. Bxd1 {[%clk 0:00:17]}  Rxd1 {[%clk 0:00:23]} 50. Re7 {[%clk 0:00:17]}  Rd3+ {[%clk 0:00:22]} 51. Kc4 {[%clk 0:00:17]}  Rxf3 {[%clk 0:00:23]} 52. Rxa7 {[%clk 0:00:18]}  Rf2 {[%clk 0:00:24]} 53. b4 {[%clk 0:00:18]}  Kh4 {[%clk 0:00:23]} 54. Rh7+ {[%clk 0:00:17]}  Kg3 {[%clk 0:00:23]} 55. a4 {[%clk 0:00:18]}  g5 {[%clk 0:00:23]} 56. a5 {[%clk 0:00:18]}  g4 {[%clk 0:00:24]} 57. a6 {[%clk 0:00:19]}  Ra2 {[%clk 0:00:24]} 58. b5 {[%clk 0:00:18]}  Be3 {[%clk 0:00:25]} 59. Re7 {[%clk 0:00:18]}  f4 {[%clk 0:00:22]} 60. Kb3 {[%clk 0:00:19]}  Ra1 {[%clk 0:00:21]} 61. Kc4 {[%clk 0:00:13]}  Kf3 {[%clk 0:00:19]} 62. Kd5 {[%clk 0:00:12]}  g3 {[%clk 0:00:19]} 63. Kc6 {[%clk 0:00:13]}  g2 {[%clk 0:00:19]} 64. b6 {[%clk 0:00:13]}  Rxa6 {[%clk 0:00:18]} 65. Kd5 {[%clk 0:00:12]}  Rxb6 {[%clk 0:00:18]} 66. Rg7 {[%clk 0:00:10]}  g1=Q {[%clk 0:00:18]} 0-1


[Site "https://www.chess.com"]

[Event "Titled Tuesday Blitz April 05 Late 2022"]
[White "Melkumyan, Hrant"]
[Black "Mikhailov, Viacheslav"]
[WhiteFideId "13302485"]
[BlackFideId "4187369"]
[WhiteElo "2604"]
[BlackElo "2381"]
[Result "1-0"]
[Round "03"]
[TimeControl "180+1"]
[Date "2022.04.05"]
[WhiteClock "0:01:22"]
[BlackClock "0:00:26"]

1. c4 {[%clk 0:03:00]}  Nf6 {[%clk 0:02:59]} 2. g3 {[%clk 0:02:59]}  g6 {[%clk 0:03:00]} 3. Bg2 {[%clk 0:02:58]}  Bg7 {[%clk 0:03:00]} 4. Nc3 {[%clk 0:02:59]}  O-O {[%clk 0:03:01]} 5. d4 {[%clk 0:02:59]}  d6 {[%clk 0:03:01]} 6. Nf3 {[%clk 0:02:59]}  Nc6 {[%clk 0:03:01]} 7. O-O {[%clk 0:02:59]}  Bf5 {[%clk 0:03:02]} 8. Ne1 {[%clk 0:02:55]}  Qd7 {[%clk 0:03:01]} 9. e4 {[%clk 0:02:53]}  Bh3 {[%clk 0:03:01]} 10. Nc2 {[%clk 0:02:52]}  Bxg2 {[%clk 0:03:01]} 11. Kxg2 {[%clk 0:02:53]}  h5 {[%clk 0:03:01]} 12. h3 {[%clk 0:02:50]}  e5 {[%clk 0:03:01]} 13. d5 {[%clk 0:02:49]}  Ne7 {[%clk 0:02:57]} 14. Be3 {[%clk 0:02:45]}  Nh7 {[%clk 0:02:56]} 15. c5 {[%clk 0:02:29]}  f5 {[%clk 0:02:55]} 16. cxd6 {[%clk 0:02:29]}  cxd6 {[%clk 0:02:54]} 17. exf5 {[%clk 0:02:30]}  Nxf5 {[%clk 0:02:47]} 18. Ne4 {[%clk 0:02:28]}  Rf7 {[%clk 0:02:32]} 19. Qd3 {[%clk 0:02:26]}  a6 {[%clk 0:02:27]} 20. Rac1 {[%clk 0:02:26]}  Raf8 {[%clk 0:02:27]} 21. Na3 {[%clk 0:02:16]}  Nf6 {[%clk 0:02:22]} 22. Nc4 {[%clk 0:02:11]}  Nxe4 {[%clk 0:02:13]} 23. Qxe4 {[%clk 0:02:12]}  Nxe3+ {[%clk 0:02:06]} 24. Nxe3 {[%clk 0:02:06]}  Kh7 {[%clk 0:02:05]} 25. Rc2 {[%clk 0:01:58]}  Rc8 {[%clk 0:01:55]} 26. Rfc1 {[%clk 0:01:52]}  Rxc2 {[%clk 0:01:55]} 27. Rxc2 {[%clk 0:01:53]}  Qb5 {[%clk 0:01:53]} 28. a4 {[%clk 0:01:51]}  Qd7 {[%clk 0:01:31]} 29. Nf1 {[%clk 0:01:47]}  Bh6 {[%clk 0:01:30]} 30. Nh2 {[%clk 0:01:47]}  Qd8 {[%clk 0:01:16]} 31. Nf3 {[%clk 0:01:46]}  Qb6 {[%clk 0:01:10]} 32. b4 {[%clk 0:01:45]}  a5 {[%clk 0:01:05]} 33. bxa5 {[%clk 0:01:43]}  Qxa5 {[%clk 0:01:06]} 34. Rc8 {[%clk 0:01:41]}  Kg7 {[%clk 0:00:37]} 35. Re8 {[%clk 0:01:40]}  Qb6 {[%clk 0:00:34]} 36. Re6 {[%clk 0:01:39]}  Rf6 {[%clk 0:00:34]} 37. Rxf6 {[%clk 0:01:37]}  Kxf6 {[%clk 0:00:35]} 38. Nh4 {[%clk 0:01:37]}  Bc1 {[%clk 0:00:29]} 39. Qxg6+ {[%clk 0:01:37]}  Ke7 {[%clk 0:00:29]} 40. Nf5+ {[%clk 0:01:36]}  Kd8 {[%clk 0:00:28]} 41. Qxd6+ {[%clk 0:01:29]}  Qxd6 {[%clk 0:00:27]} 42. Nxd6 {[%clk 0:01:30]}  Kc7 {[%clk 0:00:28]} 43. Nc4 {[%clk 0:01:26]}  e4 {[%clk 0:00:28]} 44. g4 {[%clk 0:01:25]}  h4 {[%clk 0:00:27]} 45. f3 {[%clk 0:01:22]}  e3 {[%clk 0:00:26]} 46. Kf1 {[%clk 0:01:22]} 1-0


[Site "https://www.chess.com"]

[Event "Titled Tuesday Blitz April 05 Late 2022"]
[White "Migot, Tangi"]
[Black "Murzin, Volodar"]
[WhiteFideId "662445"]
[BlackFideId "44155573"]
[WhiteElo "2520"]
[BlackElo "2585"]
[Result "0-1"]
[Round "03"]
[TimeControl "180+1"]
[Date "2022.04.06"]
[WhiteClock "0:01:59"]
[BlackClock "0:02:38"]

1. Nf3 {[%clk 0:02:59]}  Nf6 {[%clk 0:03:00]} 2. g3 {[%clk 0:02:59]}  g6 {[%clk 0:03:01]} 3. Bg2 {[%clk 0:02:59]}  Bg7 {[%clk 0:03:02]} 4. O-O {[%clk 0:03:00]}  O-O {[%clk 0:03:02]} 5. d4 {[%clk 0:03:00]}  d6 {[%clk 0:03:03]} 6. a4 {[%clk 0:03:00]}  Nbd7 {[%clk 0:03:04]} 7. Nc3 {[%clk 0:03:00]}  e5 {[%clk 0:03:05]} 8. dxe5 {[%clk 0:02:59]}  dxe5 {[%clk 0:03:04]} 9. a5 {[%clk 0:03:00]}  c6 {[%clk 0:03:03]} 10. Nd2 {[%clk 0:02:59]}  Qc7 {[%clk 0:03:02]} 11. Nc4 {[%clk 0:02:59]}  Rd8 {[%clk 0:03:02]} 12. Qd6 {[%clk 0:02:59]}  Qxd6 {[%clk 0:03:02]} 13. Nxd6 {[%clk 0:03:00]}  Nc5 {[%clk 0:03:03]} 14. Nxc8 {[%clk 0:02:58]}  Raxc8 {[%clk 0:03:04]} 15. Be3 {[%clk 0:02:50]}  Bf8 {[%clk 0:03:04]} 16. Rfd1 {[%clk 0:02:43]}  a6 {[%clk 0:03:04]} 17. Kf1 {[%clk 0:02:17]}  Ng4 {[%clk 0:02:51]} 18. Bxc5 {[%clk 0:02:16]}  Bxc5 {[%clk 0:02:51]} 19. Bh3 {[%clk 0:02:09]}  Nxf2 {[%clk 0:02:38]} 20. Bxc8 {[%clk 0:02:04]}  Nxd1 {[%clk 0:02:38]} 21. Bxb7 {[%clk 0:01:59]}  Ne3+ {[%clk 0:02:38]} 0-1


[Site "https://www.chess.com"]

[Event "Titled Tuesday Blitz April 05 Late 2022"]
[White "Mikhnenko, Alexander"]
[Black "Fiedorek, Michal"]
[WhiteFideId "34143014"]
[BlackFideId "1199528"]
[WhiteElo "2117"]
[BlackElo "1833"]
[Result "1-0"]
[Round "03"]
[TimeControl "180+1"]
[Date "2022.04.06"]
[WhiteClock "0:00:10"]
[BlackClock "0:00:01"]

1. e4 {[%clk 0:03:00]}  c5 {[%clk 0:02:59]} 2. Nf3 {[%clk 0:03:00]}  d6 {[%clk 0:02:59]} 3. d4 {[%clk 0:03:01]}  cxd4 {[%clk 0:03:00]} 4. Nxd4 {[%clk 0:03:02]}  Nf6 {[%clk 0:03:01]} 5. Nc3 {[%clk 0:03:02]}  Nc6 {[%clk 0:03:02]} 6. Bc4 {[%clk 0:03:02]}  e6 {[%clk 0:03:02]} 7. Be3 {[%clk 0:03:01]}  Be7 {[%clk 0:03:01]} 8. Qe2 {[%clk 0:03:01]}  a6 {[%clk 0:02:48]} 9. O-O-O {[%clk 0:03:00]}  Nxd4 {[%clk 0:02:44]} 10. Bxd4 {[%clk 0:02:58]}  b5 {[%clk 0:02:44]} 11. Bb3 {[%clk 0:02:44]}  Bb7 {[%clk 0:02:44]} 12. e5 {[%clk 0:02:38]}  dxe5 {[%clk 0:02:41]} 13. Bxe5 {[%clk 0:02:39]}  Qb6 {[%clk 0:02:41]} 14. Rhg1 {[%clk 0:02:06]}  O-O {[%clk 0:02:38]} 15. g4 {[%clk 0:02:05]}  b4 {[%clk 0:02:31]} 16. g5 {[%clk 0:02:01]}  Ne8 {[%clk 0:02:26]} 17. Ne4 {[%clk 0:01:59]}  a5 {[%clk 0:02:21]} 18. Rg3 {[%clk 0:01:07]}  Kh8 {[%clk 0:02:08]} 19. Rh3 {[%clk 0:01:01]}  Rc8 {[%clk 0:01:54]} 20. Bc4 {[%clk 0:00:52]}  Bxe4 {[%clk 0:01:40]} 21. Qxe4 {[%clk 0:00:53]}  Bxg5+ {[%clk 0:01:40]} 22. f4 {[%clk 0:00:53]}  f5 {[%clk 0:01:37]} 23. Qf3 {[%clk 0:00:30]}  Bf6 {[%clk 0:00:59]} 24. Qh5 {[%clk 0:00:30]}  h6 {[%clk 0:00:53]} 25. Bb3 {[%clk 0:00:27]}  Bxe5 {[%clk 0:00:46]} 26. fxe5 {[%clk 0:00:28]}  Qf2 {[%clk 0:00:42]} 27. Kb1 {[%clk 0:00:23]}  Nc7 {[%clk 0:00:31]} 28. Rg3 {[%clk 0:00:20]}  Qf4 {[%clk 0:00:14]} 29. Qg6 {[%clk 0:00:19]}  Rg8 {[%clk 0:00:12]} 30. a3 {[%clk 0:00:18]}  bxa3 {[%clk 0:00:12]} 31. Rd7 {[%clk 0:00:17]}  Qf1+ {[%clk 0:00:05]} 32. Ka2 {[%clk 0:00:17]}  axb2 {[%clk 0:00:06]} 33. Kxb2 {[%clk 0:00:16]}  Ne8 {[%clk 0:00:05]} 34. Rh3 {[%clk 0:00:14]}  Qf4 {[%clk 0:00:04]} 35. Qg3 {[%clk 0:00:09]}  Qxg3 {[%clk 0:00:04]} 36. Rxg3 {[%clk 0:00:10]}  f4 {[%clk 0:00:03]} 37. Rg6 {[%clk 0:00:10]}  Nc7 {[%clk 0:00:01]} 38. Bxe6 {[%clk 0:00:10]}  Nxe6 {[%clk 0:00:01]} 39. Rxe6 {[%clk 0:00:11]}  f3 {[%clk 0:00:01]} 40. Rd2 {[%clk 0:00:10]}  Rgf8 {[%clk 0:00:01]} 41. Rf2 {[%clk 0:00:10]}  Rf4 {[%clk 0:00:01]} 42. Rd6 {[%clk 0:00:10]}  Rb4+ {[%clk 0:00:01]} 43. Kc1 {[%clk 0:00:10]} 1-0


[Site "https://www.chess.com"]

[Event "Titled Tuesday Blitz April 05 Late 2022"]
[White "Nazaretyan, Tigran"]
[Black "Martin Duque, Jesus"]
[WhiteFideId "24162345"]
[BlackFideId "2208954"]
[WhiteElo "2225"]
[BlackElo "2243"]
[Result "1/2-1/2"]
[Round "03"]
[TimeControl "180+1"]
[Date "2022.04.06"]
[WhiteClock "0:00:19"]
[BlackClock "0:00:05"]

1. d4 {[%clk 0:03:00]}  Nf6 {[%clk 0:00:43]} 2. c4 {[%clk 0:02:58]}  b6 {[%clk 0:00:43]} 3. Nc3 {[%clk 0:02:57]}  Bb7 {[%clk 0:00:43]} 4. d5 {[%clk 0:02:51]}  e6 {[%clk 0:00:43]} 5. a3 {[%clk 0:02:51]}  Bd6 {[%clk 0:00:43]} 6. e4 {[%clk 0:02:51]}  Be5 {[%clk 0:00:43]} 7. Bd3 {[%clk 0:02:44]}  Bxc3+ {[%clk 0:00:42]} 8. bxc3 {[%clk 0:02:44]}  d6 {[%clk 0:00:43]} 9. Ne2 {[%clk 0:02:40]}  Nbd7 {[%clk 0:00:43]} 10. a4 {[%clk 0:02:38]}  a5 {[%clk 0:00:42]} 11. O-O {[%clk 0:02:34]}  O-O {[%clk 0:00:42]} 12. Nd4 {[%clk 0:02:32]}  Re8 {[%clk 0:00:41]} 13. Re1 {[%clk 0:02:21]}  Nc5 {[%clk 0:00:39]} 14. Bc2 {[%clk 0:02:20]}  Qd7 {[%clk 0:00:34]} 15. Bg5 {[%clk 0:02:18]}  Qe7 {[%clk 0:00:17]} 16. e5 {[%clk 0:02:14]}  dxe5 {[%clk 0:00:17]} 17. Rxe5 {[%clk 0:02:14]}  Ncd7 {[%clk 0:00:18]} 18. Re3 {[%clk 0:02:05]}  Qc5 {[%clk 0:00:18]} 19. Bxf6 {[%clk 0:01:18]}  Nxf6 {[%clk 0:00:18]} 20. dxe6 {[%clk 0:01:18]}  fxe6 {[%clk 0:00:11]} 21. Nxe6 {[%clk 0:01:18]}  Qc6 {[%clk 0:00:08]} 22. Nf4 {[%clk 0:01:16]}  Rxe3 {[%clk 0:00:08]} 23. fxe3 {[%clk 0:01:16]}  Re8 {[%clk 0:00:08]} 24. Qd4 {[%clk 0:01:10]}  g5 {[%clk 0:00:07]} 25. Nd5 {[%clk 0:01:05]}  Nxd5 {[%clk 0:00:07]} 26. cxd5 {[%clk 0:01:04]}  Qxd5 {[%clk 0:00:08]} 27. Qxd5+ {[%clk 0:00:45]}  Bxd5 {[%clk 0:00:08]} 28. Kf2 {[%clk 0:00:45]}  Rf8+ {[%clk 0:00:08]} 29. Kg3 {[%clk 0:00:45]}  h5 {[%clk 0:00:07]} 30. h4 {[%clk 0:00:44]}  gxh4+ {[%clk 0:00:07]} 31. Kxh4 {[%clk 0:00:44]}  Rf2 {[%clk 0:00:07]} 32. Bg6 {[%clk 0:00:37]}  Rxg2 {[%clk 0:00:07]} 33. e4 {[%clk 0:00:36]}  Rxg6 {[%clk 0:00:06]} 34. exd5 {[%clk 0:00:37]}  Rg4+ {[%clk 0:00:06]} 35. Kxh5 {[%clk 0:00:37]}  Rc4 {[%clk 0:00:07]} 36. Re1 {[%clk 0:00:27]}  Kf8 {[%clk 0:00:07]} 37. Kg6 {[%clk 0:00:22]}  Rxa4 {[%clk 0:00:07]} 38. Kf6 {[%clk 0:00:21]}  Rc4 {[%clk 0:00:07]} 39. Re3 {[%clk 0:00:21]}  Rc5 {[%clk 0:00:07]} 40. Ke6 {[%clk 0:00:21]}  Ke8 {[%clk 0:00:08]} 41. Rh3 {[%clk 0:00:20]}  Kf8 {[%clk 0:00:05]} 42. Kf6 {[%clk 0:00:19]}  Kg8 {[%clk 0:00:05]} 43. Rg3+ {[%clk 0:00:20]}  Kf8 {[%clk 0:00:04]} 44. Rh3 {[%clk 0:00:20]}  Ke8 {[%clk 0:00:04]} 45. Ke6 {[%clk 0:00:20]}  Kf8 {[%clk 0:00:05]} 46. Kf6 {[%clk 0:00:19]} 1/2-1/2


[Site "https://www.chess.com"]

[Event "Titled Tuesday Blitz April 05 Late 2022"]
[White "Onslow, Alfie"]
[Black "Zhou, Qiyu"]
[WhiteFideId "436976"]
[BlackFideId "505161"]
[WhiteElo "1884"]
[BlackElo "1925"]
[Result "1-0"]
[Round "03"]
[TimeControl "180+1"]
[Date "2022.04.06"]
[WhiteClock "0:00:51"]
[BlackClock "0:01:39"]

1. e4 {[%clk 0:03:00]}  e5 {[%clk 0:02:59]} 2. Bc4 {[%clk 0:03:00]}  Nc6 {[%clk 0:02:59]} 3. d3 {[%clk 0:02:59]}  Bc5 {[%clk 0:03:00]} 4. Nc3 {[%clk 0:02:56]}  Nf6 {[%clk 0:02:58]} 5. f4 {[%clk 0:02:55]}  d6 {[%clk 0:02:56]} 6. f5 {[%clk 0:02:54]}  h6 {[%clk 0:02:54]} 7. Nf3 {[%clk 0:02:54]}  Bd7 {[%clk 0:02:54]} 8. Qe2 {[%clk 0:02:49]}  Qe7 {[%clk 0:02:52]} 9. a3 {[%clk 0:02:48]}  O-O-O {[%clk 0:02:51]} 10. Be3 {[%clk 0:02:48]}  Nd4 {[%clk 0:02:46]} 11. Bxd4 {[%clk 0:02:37]}  exd4 {[%clk 0:02:47]} 12. Nd5 {[%clk 0:02:34]}  Nxd5 {[%clk 0:02:44]} 13. Bxd5 {[%clk 0:02:35]}  Rhe8 {[%clk 0:02:40]} 14. b4 {[%clk 0:02:31]}  Bb6 {[%clk 0:02:40]} 15. a4 {[%clk 0:02:31]}  c6 {[%clk 0:02:37]} 16. Bb3 {[%clk 0:02:22]}  a6 {[%clk 0:02:30]} 17. O-O {[%clk 0:02:13]}  Bxf5 {[%clk 0:02:29]} 18. b5 {[%clk 0:02:08]}  cxb5 {[%clk 0:02:23]} 19. axb5 {[%clk 0:02:08]}  a5 {[%clk 0:02:24]} 20. Qd2 {[%clk 0:02:00]}  Be6 {[%clk 0:02:21]} 21. Kh1 {[%clk 0:01:53]}  Kb8 {[%clk 0:02:14]} 22. Ra4 {[%clk 0:01:24]}  Qc7 {[%clk 0:02:12]} 23. Nxd4 {[%clk 0:01:16]}  Bxd4 {[%clk 0:02:11]} 24. Rxd4 {[%clk 0:01:17]}  b6 {[%clk 0:02:06]} 25. Bxe6 {[%clk 0:01:14]}  fxe6 {[%clk 0:02:07]} 26. Rc4 {[%clk 0:01:14]}  Qb7 {[%clk 0:02:04]} 27. Rc6 {[%clk 0:01:14]}  Re7 {[%clk 0:01:53]} 28. Qe3 {[%clk 0:00:59]}  Ka7 {[%clk 0:01:45]} 29. Ra1 {[%clk 0:00:59]}  Rf7 {[%clk 0:01:43]} 30. Rxa5+ {[%clk 0:00:52]}  Kb8 {[%clk 0:01:42]} 31. Ra1 {[%clk 0:00:52]}  d5 {[%clk 0:01:39]} 32. Rxb6 {[%clk 0:00:51]} 1-0


[Site "https://www.chess.com"]